fUSD/lending_fUSD_20240429
["ID","MTS","AMOUNT","RATE_DAILY","PERIOD"]
[324889509,1714399850494,-208.0,0.00012429,2]
[324889510,1714399850503,-1475.0,0.00012429,2]
[324889511,1714399850513,-151.059,0.00012429,2]
[324889512,1714399850523,-420.0,0.00012429,2]
[324889513,1714399850533,-3131.0,0.00012429,2]
[324889514,1714399850542,-2447.0,0.00012429,2]
[324889515,1714399850552,-445.132,0.00012429,2]
[324889516,1714399850562,-1651.287,0.00012429,2]
[324889517,1714399850571,-215.0,0.00012429,2]
[324889518,1714399850581,-150.87,0.00012429,2]
[324889519,1714399850590,-1138.297,0.00012429,2]
[324889520,1714399850600,-360.347614,0.0001244,2]
[324889521,1714399850610,-603.457535,0.0001244,2]
[324889522,1714399850619,-153.748316,0.0001244,2]
[324889523,1714399850629,-1025.344605,0.0001244,2]
[324889524,1714399850640,-203.408112,0.0001244,2]
[324889525,1714399850650,-4099.51393249,0.00012445,2]
[324889526,1714399850659,-150.0,0.00012466,2]
[324889527,1714399850669,-150.0,0.00012466,2]
[324889528,1714399850678,-150.0,0.00012466,2]
[324889529,1714399850688,-698.88,0.00012472,2]
[324889530,1714399850697,-348.86564417,0.0001248,2]
[324889531,1714399850706,-200.88129129,0.00012495,2]
[324889532,1714399850716,-17682.77174506,0.00012497,2]
[324889533,1714399850726,-500.0,0.00012499,2]
[324889534,1714399850735,-1000.0,0.000125,2]
[324889535,1714399850745,-1352.0,0.000125,2]
[324889536,1714399850754,-1352.0,0.000125,2]
[324889537,1714399850764,-1352.0,0.000125,2]
[324889538,1714399850773,-1352.0,0.000125,2]
[324889539,1714399850782,-1352.0,0.000125,2]
[324889540,1714399850792,-1352.0,0.000125,2]
[324889541,1714399850801,-1352.0,0.000125,2]
[324889542,1714399850811,-1352.0,0.000125,2]
[324889543,1714399850820,-1352.0,0.000125,2]
[324889544,1714399850830,-1352.0,0.000125,2]
[324889545,1714399850839,-150.0,0.00012512,2]
[324889546,1714399850848,-645.20802505,0.00012524,2]
[324889547,1714399850858,-150.0,0.0001253,2]
[324889548,1714399850870,-4099.51393249,0.00012536,2]
[324889549,1714399850879,-1000.0,0.00012541,2]
[324889550,1714399850891,-1000.0,0.00012541,2]
[324889551,1714399850900,-1000.0,0.00012542,2]
[324889552,1714399850911,-1000.0,0.00012542,2]
[324889553,1714399850920,-151.0,0.00012542,2]
[324889554,1714399850931,-500.0,0.00012545,2]
[324889555,1714399850940,-500.0,0.00012545,2]
[324889556,1714399850951,-500.0,0.00012545,2]
[324889557,1714399850962,-500.0,0.00012545,2]
[324889558,1714399850971,-500.0,0.00012545,2]
[324889559,1714399850981,-500.0,0.00012545,2]
[324889560,1714399850991,-500.0,0.00012545,2]
[324889561,1714399851001,-500.0,0.00012545,2]
[324889562,1714399851012,-204.15863884,0.00012545,2]
[324889563,1714399851022,-593.27,0.00012545,2]
[324889564,1714399851032,-500.0,0.00012545,2]
[324889565,1714399851042,-500.0,0.00012545,2]
[324889566,1714399851053,-500.0,0.00012545,2]
[324889567,1714399851063,-500.0,0.00012545,2]
[324889568,1714399851073,-500.0,0.00012545,2]
[324889569,1714399851083,-500.0,0.00012545,2]
[324889570,1714399851092,-500.0,0.00012545,2]
[324889571,1714399851102,-500.0,0.00012545,2]
[324889572,1714399851111,-500.0,0.00012545,2]
[324889573,1714399851121,-500.0,0.00012545,2]
[324889574,1714399851130,-500.0,0.00012545,2]
[324889575,1714399851141,-500.0,0.00012545,2]
[324889576,1714399851152,-500.0,0.00012545,2]
[324889577,1714399851161,-500.0,0.00012545,2]
[324889578,1714399851171,-500.0,0.00012545,2]
[324889579,1714399851181,-466.43488514,0.00012545,2]
[324889580,1714399851190,-500.0,0.00012545,2]
[324889581,1714399851200,-500.0,0.00012545,2]
[324889582,1714399851209,-500.0,0.00012545,2]
[324889583,1714399851218,-500.0,0.00012545,2]
[324889584,1714399851229,-413.74259243,0.00012545,2]
[324889585,1714399851238,-500.0,0.00012545,2]
[324889586,1714399851248,-500.0,0.00012545,2]
[324889587,1714399851257,-500.0,0.00012545,2]
[324889588,1714399851266,-500.0,0.00012545,2]
[324889589,1714399851276,-500.0,0.00012545,2]
[324889590,1714399851285,-500.0,0.00012545,2]
[324889591,1714399851294,-500.0,0.00012545,2]
[324889592,1714399851303,-502.16,0.00012545,2]
[324889593,1714399851312,-500.0,0.00012545,2]
[324889594,1714399851322,-500.0,0.00012545,2]
[324889595,1714399851331,-500.0,0.00012545,2]
[324889596,1714399851341,-500.0,0.00012545,2]
[324889597,1714399851350,-500.0,0.00012545,2]
[324889598,1714399851360,-500.0,0.00012545,2]
[324889599,1714399851370,-500.0,0.00012545,2]
[324889600,1714399851381,-500.0,0.00012545,2]
[324889601,1714399851392,-500.0,0.00012545,2]
[324889602,1714399851401,-500.0,0.00012545,2]
[324889603,1714399851410,-500.0,0.00012545,2]
[324889604,1714399851419,-500.0,0.00012545,2]
[324889605,1714399851430,-500.0,0.00012545,2]
[324889606,1714399851439,-500.0,0.00012545,2]
[324889607,1714399851449,-500.0,0.00012545,2]
[324889608,1714399851459,-500.0,0.00012546,2]
[324889609,1714399851470,-500.0,0.00012546,2]
[324889610,1714399851480,-648.79719455,0.00012546,2]
[324889611,1714399851489,-500.0,0.00012546,2]
[324889612,1714399851499,-500.0,0.00012546,2]
[324889613,1714399851508,-704.27,0.00012546,2]
[324889614,1714399851518,-151.0,0.00012546,2]
[324889615,1714399851527,-500.0,0.00012546,2]
[324889616,1714399851537,-500.0,0.00012546,2]
[324889617,1714399851547,-500.0,0.00012546,2]
[324889618,1714399851556,-500.0,0.00012546,2]
[324889619,1714399851567,-500.0,0.00012546,2]
[324889620,1714399851577,-500.0,0.00012546,2]
[324889621,1714399851587,-361.07544757,0.00012546,2]
[324889622,1714399851597,-500.0,0.00012546,2]
[324889623,1714399851607,-500.0,0.00012546,2]
[324889624,1714399851619,-544.95,0.00012546,2]
[324889625,1714399851628,-500.0,0.00012546,2]
[324889626,1714399851639,-500.0,0.00012546,2]
[324889627,1714399851648,-500.0,0.00012546,2]
[324889628,1714399851658,-500.0,0.00012546,2]
[324889629,1714399851669,-500.0,0.00012546,2]
[324889630,1714399851681,-566.81,0.00012546,2]
[324889631,1714399851691,-500.0,0.00012546,2]
[324889632,1714399851701,-500.0,0.00012546,2]
[324889633,1714399851710,-500.0,0.00012546,2]
[324889634,1714399851720,-500.0,0.00012546,2]
[324889635,1714399851729,-267.89,0.00012546,2]
[324889636,1714399851738,-500.0,0.00012546,2]
[324889637,1714399851747,-500.0,0.00012546,2]
[324889638,1714399851756,-500.0,0.00012546,2]
[324889639,1714399851765,-500.0,0.00012546,2]
[324889640,1714399851774,-500.0,0.00012546,2]
[324889641,1714399851784,-500.0,0.00012546,2]
[324889642,1714399851794,-500.0,0.00012546,2]
[324889643,1714399851803,-500.0,0.00012546,2]
[324889644,1714399851812,-500.0,0.00012546,2]
[324889645,1714399851822,-500.0,0.00012546,2]
[324889646,1714399851831,-530.66,0.00012546,2]
[324889647,1714399851840,-500.0,0.00012546,2]
[324889648,1714399851849,-500.0,0.00012546,2]
[324889649,1714399851858,-500.0,0.00012546,2]
[324889650,1714399851868,-464.94351936,0.00012546,2]
[324889651,1714399851881,-500.0,0.00012546,2]
[324889652,1714399851891,-500.0,0.00012546,2]
[324889653,1714399851900,-150.0,0.00012548,2]
[324889654,1714399851910,-150.0,0.00012548,2]
[324889655,1714399851920,-254.71,0.00012548,2]
[324889656,1714399851930,-150.0,0.00012548,2]
[324889657,1714399851940,-162.94,0.00012548,2]
[324889658,1714399851953,-150.0,0.00012548,2]
[324889659,1714399851965,-150.0,0.00012548,2]
[324889660,1714399851975,-162.94,0.00012548,2]
[324889661,1714399851985,-150.0,0.00012548,2]
[324889662,1714399851994,-162.94,0.00012548,2]
[324889663,1714399852003,-150.0,0.00012548,2]
[324889664,1714399852012,-150.0,0.00012548,2]
[324889665,1714399852022,-150.0,0.00012548,2]
[324889666,1714399852032,-162.94,0.00012548,2]
[324889667,1714399852043,-162.94,0.00012548,2]
[324889668,1714399852053,-162.94,0.00012548,2]
[324889669,1714399852063,-162.94,0.00012548,2]
[324889670,1714399852072,-162.94,0.00012548,2]
[324889671,1714399852082,-162.94,0.00012548,2]
[324889672,1714399852092,-162.94,0.00012548,2]
[324889673,1714399852102,-1500.0,0.00012557,2]
[324889674,1714399852111,-159.55653523,0.0001256,2]
[324889675,1714399852121,-362.2973224,0.00012571,2]
[324889676,1714399852130,-151.0,0.0001258,2]
[324889677,1714399852141,-316.3316198,0.00012593,2]
[324889678,1714399852150,-106614.94755674,0.00012595,2]
[324889679,1714399852397,-264056.03406527,0.00012595,2]
[324889680,1714399852500,-500.0,0.00011778,2]
[324889681,1714399852510,-500.0,0.00012052,2]
[324889682,1714399852519,-500.0,0.00012326,2]
[324889683,1714399852529,-2247.00315544,0.00012595,2]
[324889684,1714399852542,-430007.63499066,0.00012595,2]
[324889685,1714399852552,-360.347614,0.00012595,2]
[324889686,1714399852562,-603.457535,0.00012595,2]
[324889687,1714399852572,-153.748316,0.00012595,2]
[324889688,1714399852581,-1025.344605,0.00012595,2]
[324889689,1714399852590,-2611.27,0.00012599,2]
[324889690,1714399852600,-500.0,0.00012599,2]
[324889691,1714399852611,-220.73595912,0.000126,2]
[324889692,1714399852620,-1000.0,0.000126,2]
[324889693,1714399852629,-500.0,0.000126,2]
[324889694,1714399852641,-500.0,0.000126,2]
[324889695,1714399852650,-956.8,0.000126,2]
[324889696,1714399852659,-500.0,0.000126,2]
[324889697,1714399852668,-500.0,0.000126,2]
[324889698,1714399852677,-500.0,0.000126,2]
[324889699,1714399852686,-500.0,0.000126,2]
[324889700,1714399852696,-1812.81,0.000126,2]
[324889701,1714399852706,-500.0,0.000126,2]
[324889702,1714399852718,-500.0,0.000126,2]
[324889703,1714399852728,-500.0,0.000126,2]
[324889704,1714399852738,-500.0,0.000126,2]
[324889705,1714399852747,-500.0,0.000126,2]
[324889706,1714399852757,-803.75,0.000126,2]
[324889707,1714399852766,-500.0,0.000126,2]
[324889708,1714399852776,-500.0,0.000126,2]
[324889709,1714399852785,-500.0,0.000126,2]
[324889710,1714399852794,-508.44,0.000126,2]
[324889711,1714399852803,-500.0,0.000126,2]
[324889712,1714399852812,-500.0,0.000126,2]
[324889713,1714399852821,-500.0,0.000126,2]
[324889714,1714399852831,-1097.9,0.000126,2]
[324889715,1714399852843,-500.0,0.000126,2]
[324889716,1714399852854,-500.0,0.000126,2]
[324889717,1714399852870,-565.51,0.000126,2]
[324889718,1714399852880,-500.0,0.000126,2]
[324889719,1714399852891,-500.0,0.000126,2]
[324889720,1714399852901,-785.53,0.000126,2]
[324889721,1714399852910,-1452.33,0.000126,2]
[324889722,1714399852920,-500.0,0.000126,2]
[324889723,1714399852929,-500.0,0.000126,2]
[324889724,1714399852939,-500.0,0.000126,2]
[324889725,1714399853095,-500.0,0.000126,2]
[324889726,1714399853106,-520.13,0.000126,2]
[324889727,1714399853116,-644.35,0.000126,2]
[324889728,1714399853128,-295.62478361,0.000126,2]
[324889729,1714399853141,-500.0,0.000126,2]
[324889730,1714399853150,-836.77,0.000126,2]
[324889731,1714399853160,-500.0,0.000126,2]
[324889732,1714399853170,-500.0,0.000126,2]
[324889733,1714399853180,-500.0,0.000126,2]
[324889734,1714399853190,-500.0,0.000126,2]
[324889735,1714399853199,-1762.99,0.000126,2]
[324889736,1714399853209,-500.0,0.000126,2]
[324889737,1714399853218,-1171.36,0.000126,2]
[324889738,1714399853228,-830.34,0.000126,2]
[324889739,1714399853237,-796.44,0.000126,2]
[324889740,1714399853247,-500.0,0.000126,2]
[324889741,1714399853256,-1202.21,0.000126,2]
[324889742,1714399853266,-500.0,0.000126,2]
[324889743,1714399853275,-500.0,0.000126,2]
[324889744,1714399853285,-688.59,0.000126,2]
[324889745,1714399853295,-371.48024121,0.000126,2]
[324889746,1714399853304,-810.58,0.000126,2]
[324889747,1714399853313,-500.0,0.000126,2]
[324889748,1714399853322,-500.0,0.000126,2]
[324889749,1714399853331,-500.0,0.000126,2]
[324889750,1714399853341,-500.0,0.000126,2]
[324889751,1714399853351,-500.0,0.000126,2]
[324889752,1714399853360,-5776.1,0.000126,2]
[324889753,1714399853369,-505.0,0.000126,2]
[324889754,1714399853378,-500.0,0.000126,2]
[324889755,1714399853388,-500.0,0.000126,2]
[324889756,1714399853397,-2997.65,0.000126,2]
[324889757,1714399853406,-5601.24,0.000126,2]
[324889758,1714399853416,-268.59,0.000126,2]
[324889759,1714399853425,-500.0,0.000126,2]
[324889760,1714399853434,-500.0,0.00012601,2]
[324889761,1714399853445,-500.0,0.00012601,2]
[324889762,1714399853455,-500.0,0.00012601,2]
[324889763,1714399853464,-500.0,0.00012601,2]
[324889764,1714399853473,-500.0,0.00012601,2]
[324889765,1714399853482,-500.0,0.00012601,2]
[324889766,1714399853492,-500.0,0.00012601,2]
[324889767,1714399853501,-500.0,0.00012601,2]
[324889768,1714399853510,-500.0,0.00012601,2]
[324889769,1714399853519,-500.0,0.00012601,2]
[324889770,1714399853528,-500.0,0.00012601,2]
[324889771,1714399853537,-150.0,0.00012601,2]
[324889772,1714399853546,-500.0,0.00012601,2]
[324889773,1714399853556,-500.0,0.00012601,2]
[324889774,1714399853566,-500.0,0.00012601,2]
[324889775,1714399853575,-500.0,0.00012601,2]
[324889776,1714399853585,-500.0,0.00012601,2]
[324889777,1714399853594,-500.0,0.00012601,2]
[324889778,1714399853603,-500.0,0.00012601,2]
[324889779,1714399853613,-500.0,0.00012601,2]
[324889780,1714399853622,-500.0,0.00012601,2]
[324889781,1714399853631,-500.0,0.00012601,2]
[324889782,1714399853642,-500.0,0.00012601,2]
[324889783,1714399853650,-500.0,0.00012601,2]
[324889784,1714399853659,-500.0,0.00012601,2]
[324889785,1714399853668,-500.0,0.00012601,2]
[324889786,1714399853677,-547.08,0.00012601,2]
[324889787,1714399853687,-153.63,0.00012601,2]
[324889788,1714399853695,-500.0,0.00012601,2]
[324889789,1714399853705,-500.0,0.00012601,2]
[324889790,1714399853714,-500.0,0.00012601,2]
[324889791,1714399853724,-500.0,0.00012601,2]
[324889792,1714399853733,-500.0,0.00012601,2]
[324889793,1714399853742,-500.0,0.00012601,2]
[324889794,1714399853752,-500.0,0.00012601,2]
[324889795,1714399853761,-500.0,0.00012601,2]
[324889796,1714399853770,-500.0,0.00012601,2]
[324889797,1714399853779,-500.0,0.00012601,2]
[324889798,1714399853789,-500.0,0.00012601,2]
[324889799,1714399853798,-500.0,0.00012601,2]
[324889800,1714399853807,-500.0,0.00012601,2]
[324889801,1714399853816,-500.0,0.00012601,2]
[324889802,1714399853825,-500.0,0.00012601,2]
[324889803,1714399853834,-500.0,0.00012601,2]
[324889804,1714399853844,-500.0,0.00012601,2]
[324889805,1714399853853,-500.0,0.00012601,2]
[324889806,1714399853863,-500.0,0.00012601,2]
[324889807,1714399853873,-500.0,0.00012601,2]
[324889808,1714399853884,-500.0,0.00012601,2]
[324889809,1714399853894,-5521.34,0.00012601,2]
[324889810,1714399853903,-500.0,0.00012601,2]
[324889811,1714399853914,-500.0,0.00012601,2]
[324889812,1714399853923,-416.09948352,0.00012601,2]
[324889813,1714399853932,-500.0,0.00012601,2]
[324889814,1714399853941,-500.0,0.00012601,2]
[324889815,1714399853951,-500.0,0.00012601,2]
[324889816,1714399853961,-500.0,0.00012601,2]
[324889817,1714399853970,-500.0,0.00012601,2]
[324889818,1714399853979,-500.0,0.00012601,2]
[324889819,1714399853989,-500.0,0.00012601,2]
[324889820,1714399853999,-500.0,0.00012601,2]
[324889821,1714399854008,-500.0,0.00012601,2]
[324889822,1714399854018,-1921.14,0.00012601,2]
[324889823,1714399854027,-337.82191483,0.00012601,2]
[324889824,1714399854037,-500.0,0.00012601,2]
[324889825,1714399854047,-500.0,0.00012601,2]
[324889826,1714399854057,-500.0,0.00012601,2]
[324889827,1714399854066,-500.0,0.00012601,2]
[324889828,1714399854076,-500.0,0.00012601,2]
[324889829,1714399854085,-500.0,0.00012601,2]
[324889830,1714399854094,-500.0,0.00012601,2]
[324889831,1714399854103,-500.0,0.00012601,2]
[324889832,1714399854113,-500.0,0.00012601,2]
[324889833,1714399854122,-500.0,0.00012601,2]
[324889834,1714399854132,-500.0,0.00012601,2]
[324889835,1714399854143,-1488.22,0.00012601,2]
[324889836,1714399854152,-500.0,0.00012601,2]
[324889837,1714399854161,-500.0,0.00012601,2]
[324889838,1714399854170,-500.0,0.00012601,2]
[324889839,1714399854178,-500.0,0.00012601,2]
[324889840,1714399854188,-500.0,0.00012601,2]
[324889841,1714399854197,-500.0,0.00012601,2]
[324889842,1714399854206,-500.0,0.00012601,2]
[324889843,1714399854216,-500.0,0.00012601,2]
[324889844,1714399854225,-500.0,0.00012601,2]
[324889845,1714399854235,-500.0,0.00012601,2]
[324889846,1714399854245,-500.0,0.00012601,2]
[324889847,1714399854254,-500.0,0.00012601,2]
[324889848,1714399854264,-500.0,0.00012601,2]
[324889849,1714399854273,-500.0,0.00012601,2]
[324889850,1714399854283,-189.667544,0.00012602,2]
[324889851,1714399854292,-500.0,0.00012602,2]
[324889852,1714399854302,-668.33,0.00012602,2]
[324889853,1714399854311,-500.0,0.00012602,2]
[324889854,1714399854322,-500.0,0.00012602,2]
[324889855,1714399854331,-556.31,0.00012602,2]
[324889856,1714399854341,-500.0,0.00012602,2]
[324889857,1714399854352,-500.0,0.00012602,2]
[324889858,1714399854361,-1036.27,0.00012602,2]
[324889859,1714399854371,-1167.15,0.00012602,2]
[324889860,1714399854381,-4131.74,0.00012602,2]
[324889861,1714399854392,-500.0,0.00012602,2]
[324889862,1714399854401,-1260.58,0.00012602,2]
[324889863,1714399854409,-500.0,0.00012602,2]
[324889864,1714399854418,-500.0,0.00012602,2]
[324889865,1714399854428,-500.0,0.00012602,2]
[324889866,1714399854437,-150.0,0.0001261,2]
[324889867,1714399854446,-150.0,0.00012614,2]
[324889868,1714399854456,-150.0,0.00012619,2]
[324889869,1714399854467,-150.0,0.00012619,2]
[324889870,1714399854478,-150.0,0.00012621,2]
[324889871,1714399854487,-1081.73,0.00012622,2]
[324889872,1714399854499,-150.0,0.00012624,2]
[324889873,1714399854510,-4099.51393249,0.00012627,2]
[324889874,1714399854521,-2594.5169235,0.0001263,2]
[324889875,1714399854531,-2314.4191891,0.0001263,2]
[324889876,1714399854541,-150.0,0.00012632,2]
[324889877,1714399854550,-1500.0,0.00012637,2]
[324889878,1714399854559,-1500.0,0.00012641,2]
[324889879,1714399854569,-601.50278538,0.00012643,2]
[324889880,1714399854578,-300.0,0.00012643,2]
[324889881,1714399854588,-290.86049612,0.00012646,2]
[324889882,1714399854597,-176.12651994,0.0001265,2]
[324889883,1714399854606,-1500.0,0.00012653,2]
[324889884,1714399854615,-1500.0,0.00012659,2]
[324889885,1714399854625,-150.0,0.0001266,2]
[324889886,1714399854635,-150.0,0.00012662,2]
[324889887,1714399854647,-150.0,0.00012664,2]
[324889888,1714399854656,-150.0,0.00012671,2]
[324889889,1714399854665,-150.0,0.00012673,2]
[324889890,1714399854674,-2611.27,0.00012674,2]
[324889891,1714399854684,-2611.27,0.00012674,2]
[324889892,1714399854693,-2611.27,0.00012674,2]
[324889893,1714399854702,-150.0,0.00012677,2]
[324889894,1714399854712,-152.0,0.00012679,4]
[324889895,1714399854722,-150.0,0.00012683,2]
[324889896,1714399854732,-150.0,0.00012687,2]
[324889897,1714399854742,-181.1520567,0.00012688,2]
[324889898,1714399854752,-2243.8504534,0.00012688,2]
[324889899,1714399854762,-266.49441154,0.0001269,2]
[324889900,1714399854771,-2295.4678202,0.00012691,2]
[324889901,1714399854781,-275.7123677,0.00012691,2]
[324889902,1714399854792,-181.1520567,0.00012691,2]
[324889903,1714399854803,-1960.0691527,0.00012691,2]
[324889904,1714399854812,-2058.1392743,0.00012691,2]
[324889905,1714399854821,-317.1839872,0.00012691,2]
[324889906,1714399854832,-166.94364196,0.00012697,2]
[324889907,1714399854842,-231.24039108,0.00012697,2]
[324889908,1714399854852,-155.0,0.00012697,2]
[324889909,1714399854861,-155.5181689,0.00012697,2]
[324889910,1714399854876,-1242.2292,0.00012697,2]
[324889911,1714399854888,-256.88507236,0.00012697,2]
[324889912,1714399854897,-155.76199672,0.00012697,2]
[324889913,1714399854906,-221.89651576,0.00012697,2]
[324889914,1714399854917,-155.52989607,0.00012697,2]
[324889915,1714399854927,-155.0,0.00012697,2]
[324889916,1714399854937,-1952.84308426,0.00012697,2]
[324889917,1714399854950,-155.22304423,0.00012697,2]
[324889918,1714399854962,-156.3850435,0.00012697,2]
[324889919,1714399854972,-155.49996058,0.00012697,2]
[324889920,1714399854982,-1782.33753689,0.00012697,2]
[324889921,1714399854992,-413.06779798,0.00012697,2]
[324889922,1714399855002,-150.0,0.00012697,2]
[324889923,1714399855011,-150.0,0.00012698,2]
[324889924,1714399855021,-2611.27,0.00012698,2]
[324889925,1714399855031,-500.0,0.00012699,2]
[324889926,1714399855041,-500.0,0.00012699,2]
[324889927,1714399855050,-500.0,0.00012699,2]
[324889928,1714399855059,-500.0,0.00012699,2]
[324889929,1714399855069,-2611.27,0.00012699,2]
[324889930,1714399855078,-500.0,0.00012699,2]
[324889931,1714399855089,-500.0,0.00012699,2]
[324889932,1714399855099,-500.0,0.00012699,2]
[324889933,1714399855109,-628.73017738,0.00012699,2]
[324889934,1714399855119,-309851.5003724,0.000127,2]
[324889935,1714399855134,-555.61130365,0.000127,2]
[324889936,1714399855146,-792.34873018,0.000127,2]
[324889937,1714399855166,-286.93626806,0.000126,2]
[324889938,1714399855178,-213.06373194,0.000126,2]
[324889939,1714399855188,-649.31626836,0.000127,2]
[324889940,1714399855199,-20973.3331236,0.000127,2]
[324889941,1714399855210,-630.3,0.000127,2]
[324889942,1714399855224,-589.07406779,0.000127,2]
[324889943,1714399855235,-771.69283061,0.000127,2]
[324889944,1714399855246,-728.79434185,0.000127,2]
[324889945,1714399855257,-800.34939592,0.000127,2]
[324889946,1714399855269,-569.45978708,0.000127,2]
[324889947,1714399855280,-35026.40561051,0.000127,2]
[324889948,1714399855291,-2847.59268996,0.000127,2]
[324889949,1714399855303,-3281.16788435,0.000127,2]
[324889950,1714399855314,-14344.06286432,0.000127,2]
[324889951,1714399855325,-3307.80098737,0.000127,2]
[324889952,1714399855335,-816.15537349,0.000127,2]
[324889953,1714399855346,-437.71346455,0.000127,2]
[324889954,1714399855357,-824.47434701,0.000127,2]
[324889955,1714399855369,-6686.72520002,0.000127,2]
[324889956,1714399855380,-773.38660638,0.000127,2]
[324889957,1714399855393,-638.19340764,0.000127,2]
[324889958,1714399855628,-500.0,0.00011778,2]
[324889959,1714399855639,-500.0,0.00011779,2]
[324889960,1714399855647,-245.11945785,0.00011996,2]
[324889961,1714399855657,-500.0,0.00012052,2]
[324889962,1714399855666,-500.0,0.00012053,2]
[324889963,1714399855675,-414.11,0.00012137,2]
[324889964,1714399855684,-500.0,0.00012326,2]
[324889965,1714399855694,-500.0,0.00012327,2]
[324889966,1714399855702,-500.0,0.000126,2]
[324889967,1714399855711,-500.0,0.00012601,2]
[324889968,1714399855722,-12364.67607303,0.000127,2]
[324889969,1714399855735,-1468.49131176,0.000127,2]
[324889970,1714399855749,-20938.65645817,0.000127,2]
[324889971,1714399855892,-587.73,0.000127,2]
[324889972,1714399855902,-1000.0,0.000127,2]
[324889973,1714399855911,-150.0,0.00012702,2]
[324889974,1714399855922,-150.0,0.00012702,2]
[324889975,1714399855932,-150.0,0.00012702,2]
[324889976,1714399855941,-150.0,0.00012713,2]
[324889977,1714399855953,-4099.51393249,0.00012718,2]
[324889978,1714399855962,-150.0,0.0001272,2]
[324889979,1714399855971,-150.0,0.00012723,2]
[324889980,1714399855981,-150.0,0.00012724,2]
[324889981,1714399855991,-150.0,0.00012724,2]
[324889982,1714399856000,-150.0,0.00012725,2]
[324889983,1714399856010,-300.0,0.00012728,2]
[324889984,1714399856019,-1063.9240761,0.0001274,2]
[324889985,1714399856031,-436.0759239,0.0001274,2]
[324889986,1714399856041,-150.0,0.00012742,2]
[324889987,1714399856050,-150.0,0.00012748,2]
[324889988,1714399856060,-360.347614,0.00012751,2]
[324889989,1714399856069,-603.457535,0.00012751,2]
[324889990,1714399856079,-153.748316,0.00012751,2]
[324889991,1714399856088,-1025.344605,0.00012751,2]
[324889992,1714399856097,-150.0,0.00012758,2]
[324889993,1714399856107,-123.76148353,0.0001276,2]
[324889994,1714399856152,-897.96951647,0.0001276,2]
[324889995,1714399856161,-150.0,0.00012763,2]
[324889996,1714399856171,-150.0,0.00012764,2]
[324889997,1714399856180,-150.0,0.00012769,2]
[324889998,1714399856190,-150.0,0.00012769,2]
[324889999,1714399856199,-358.0,0.0001277,2]
[324890000,1714399856207,-150.0,0.00012778,2]
[324890001,1714399856217,-150.0,0.00012784,2]
[324890002,1714399856226,-167.4157475,0.00012788,2]
[324890003,1714399856236,-150.0,0.00012795,2]
[324890004,1714399856245,-2034.57,0.000128,2]
[324890005,1714399856255,-6241.987,0.000128,2]
[324890006,1714399856264,-2611.27,0.00012808,2]
[324890007,1714399856273,-1609.69943417,0.00012808,2]
[324890008,1714399856283,-162.75263187,0.00012808,2]